Cogmind - Beta 16 @@@ ROGUE MODE // 2025.11.24 @ 15:18:11 Player: OBLIQUE Result: Destroyed by G-67 Veteran with Field Laser Performance ------------- Evolutions (5) 2500 Regions Visited (11) 2200 Robots Destroyed (118) 590 Value Destroyed (5132) 5132 Prototype IDs (33) 660 Alien Tech Used (0) 0 Bonus (2481) 2481 TOTAL SCORE: 13563 Bonus ------- High Alert Combat Kills 180 Follower Combat Kills 1038 Entered DSFs 500 Aligned with FarCom 300 Met R17 at Cetus 500 Friendly Fire -37 Cogmind --------- Core Integrity 0/1000 Matter 200/300 Energy 100/100 System Corruption 29% Temperature Critical (729) Movement Core (150) Ox2 Location -5/Factory Parts ------- > --- POWER (2) -------- Micro Fission Core > --- PROPULSION (4) --- (None) > --- UTILITY (7) ------ Improved Cryofiber Web Improved Weapon Cycler > --- WEAPON (4) ------- (None) > --- INVENTORY (5) ---- Matter Compressor (0) Advanced Recoil Stabilizer Advanced Recoil Stabilizer Improved Weapon Cycler Peak State ------------ > --- POWER ------------ Light Angular Momentum Engine Fission Core > --- PROPULSION ------- Carbon-fiber Leg Armored Huge Wheel > --- UTILITY ---------- Advanced Heat Sink Experimental Heat Sink Large Storage Unit Advanced Visual Processing Unit Centrium Medium Armor Plating Centrium Medium Armor Plating Centrium Medium Armor Plating > --- WEAPON ----------- Advanced Variable Charge Gun Advanced Variable Charge Gun Mass Driver Shock Maul > --- INVENTORY -------- Light Ion Engine Advanced Recoil Stabilizer Advanced Recoil Stabilizer Improved Weapon Cycler Improved Weapon Cycler Layered Heavy Armor Plating Improved Trap Extractor Tesla Rifle Magnetic Acceleration Cannon Improved Plasma Cutter Shock Maul Shock Maul [Rating: 99] Favorites ----------- Power Light Ion Engine Engine Light Ion Engine Power Core Light Nuclear Core Reactor Quantum Reactor Propulsion Armored Huge Wheel Treads Armored Medium Treads Leg Carbon-fiber Leg Wheel Armored Huge Wheel Utility Centrium Medium Armor Plating Device Advanced Heat Sink Storage Large Storage Unit Processor Advanced Visual Processing Unit Protection Centrium Medium Armor Plating Weapon Advanced Variable Charge Gun Energy Gun Advanced Variable Charge Gun Energy Cannon Guided Plasma Cannon Ballistic Gun Assault Rifle Ballistic Cannon Heavy Flak Cannon Launcher Improved Proton Missile Launcher Impact Weapon Shock Maul Build | -11 -10 -10 -10 -9 -8 -7 -7 -6 -6 -6 -5 ------- Run | Yrd Mat Min Exi Min Mat Fac DSF Fac Ext Cet Fac Slots Evolved 10 | . . . . . 4 2 . 2 . . 2 Power 1 | . . . . . 1 . . . . . . Propulsion 2 | . . . . . 1 1 . . . . . Utility 5 | . . . . . 2 1 . 2 . . . Weapon 2 | . . . . . . . . . . . 2 Parts Attached 118 | 5 7 8 . 1 14 2 1 2 32 15 31 Power 19 | . 1 2 . . 3 . 1 . 4 3 5 Engine 9 | . 1 1 . . 3 . 1 . 1 1 1 Core 7 | . . 1 . . . . . . 2 . 4 Reactor 3 | . . . . . . . . . 1 2 . Propulsion 16 | 2 2 1 . . 4 1 . . 2 3 1 Treads 1 | . . . . . . . . . . . 1 Leg 2 | . . . . . . . . . . 2 . Wheel 13 | 2 2 1 . . 4 1 . . 2 1 . Hover . | . . . . . . . . . . . . Flight . | . . . . . . . . . . . . Utility 45 | 1 2 2 . . 5 1 . 2 14 6 12 Device 22 | . 1 2 . . 2 1 . . 7 3 6 Storage 6 | 1 1 . . . 1 . . . 1 . 2 Processor 2 | . . . . . . . . . 2 . . Hackware . | . . . . . . . . . . . . Protection 15 | . . . . . 2 . . 2 4 3 4 Artifact . | . . . . . . . . . . . . Weapon 38 | 2 2 3 . 1 2 . . . 12 3 13 Energy Gun 13 | . 2 3 . . . . . . 4 1 3 Energy Cannon 7 | . . . . 1 . . . . 2 . 4 Ballistic Gun 6 | 2 . . . . 1 . . . 3 . . Ballistic Cannon 7 | . . . . . 1 . . . 1 2 3 Launcher 3 | . . . . . . . . . 2 . 1 Special Weapon . | . . . . . . . . . . . . Impact Weapon 2 | . . . . . . . . . . . 2 Slashing Weapon . | . . . . . . . . . . . . Piercing Weapon . | . . . . . . . . . . . . Special Melee Weapon . | . . . . . . . . . . . . Unidentified Prototypes 10 | . . . . . . . . . 4 2 4 Corrupted Parts 1 | . . . . . . . . . 1 . . System Corruption 8 | . . . . . . . . . 8 . . Parts Lost 71 | . . 2 . . 5 . . . 23 8 33 Power 12 | . . 1 . . 2 . . . 3 1 5 Propulsion 12 | . . 1 . . 2 . . . 3 2 4 Utility 27 | . . . . . . . . . 12 3 12 Weapon 20 | . . . . . 1 . . . 5 2 12 Highest Loss Streak 16 | . . 1 . . 2 . . . 16 5 16 To Critical Strikes 1 | . . . . . . . . . . 1 . Average Backups 15 | 1 6 9 12 13 25 29 31 31 17 6 10 Power 1 | . . . 1 1 3 2 2 2 1 1 . Propulsion 1 | . 1 2 3 3 2 4 3 3 1 . . Utility 6 | . . 2 4 4 8 10 14 14 8 1 6 Weapon 5 | . 3 3 4 5 10 13 11 12 6 3 2 Tool/Special . | . . . . . . . . . . . . Unused Backups 29 | . 1 1 1 . 4 1 3 . 9 . 9 Power 1 | . . . . . . . . . 1 . . Propulsion 3 | . . . . . 2 . 1 . . . . Utility 11 | . . 1 1 . . 1 . . 4 . 4 Weapon 12 | . 1 . . . 2 . 2 . 4 . 3 Tool/Special 2 | . . . . . . . . . . . 2 Average Slot Usage (%) 85 | . 95 96 100 100 87 74 76 79 77 84 81 Engine 6 | . 11 10 . . 8 15 15 13 7 1 3 Core 5 | . . 1 14 14 8 . . . 3 1 6 Reactor 1 | . . . . . . . . . . 9 . Leg 1 | . . . . . . . . . . 5 2 Wheel 15 | . 28 27 28 28 26 14 15 13 12 6 4 Device 10 | . 11 14 14 14 8 6 7 6 12 5 11 Storage 7 | . 14 14 14 14 9 7 7 6 4 6 5 Processor 3 | . . . . . . . . . 6 13 5 Protection 11 | . . . . . 9 15 15 25 14 19 14 Energy Gun 8 | . 23 28 28 14 . . . . 3 1 8 Energy Cannon 3 | . . . . 14 8 7 7 6 2 . 3 Ballistic Gun 2 | . 4 . . . 7 . . . 1 2 . Ballistic Cannon 3 | . . . . . 1 7 7 6 3 8 6 Peak Build Rating 99 | 5 13 20 21 26 41 50 57 60 71 80 99 Average Rating 53 | 3 12 16 20 26 30 49 53 59 59 73 87 On Entrance 36 | . 5 13 20 21 26 41 50 57 60 68 76 Avg Prop Armor Cover (%) 3 | . . . . . . . . . . 5 3 Naked Turns . | . . . . . . . . . . . . Heaviest Build 243 | 8 31 34 34 41 230 231 237 243 243 88 107 Greatest Support 56 | 32 32 24 24 24 44 56 56 56 56 56 28 Greatest Overweight (x) 17 | . 1 2 1 1 7 4 4 4 4 3 17 Average Overweight (x) 2 | . . 1 1 1 5 4 4 4 1 2 2 Largest Inventory Capacity 35 | 8 15 15 15 15 35 35 35 35 35 10 15 Average Capacity 20 | 6 12 15 15 15 35 35 35 35 20 10 13 Most Carried 35 | 5 7 12 15 14 35 35 35 34 35 10 15 Average Carried 16 | 2 6 9 12 14 25 31 33 33 18 7 11 Final Capacity 35 | 8 15 15 15 15 35 35 35 35 10 10 5 Final Carried 35 | 2 7 12 14 14 34 31 35 34 10 8 4 Class Distribution -------------------- 34% | Hauler-Mutant 24% | Scavenger-Tank 22% | Mutant 18% | Scavenger-Mutant Dominant Class ---------------- Mutant | -10/Materials Mutant | -10/Mines Mutant | -10/Exiles Mutant | -9/Mines Hauler-Mutant | -8/Materials Hauler-Mutant | -7/Factory Hauler-Mutant | -7/DSF Hauler-Mutant | -6/Factory Scavenger-Mutant | -6/Extension Scavenger-Mutant | -6/Cetus Scavenger-Tank | -5/Factory Resources | -11 -10 -10 -10 -9 -8 -7 -7 -6 -6 -6 -5 ----------- Run | Yrd Mat Min Exi Min Mat Fac DSF Fac Ext Cet Fac Matter Collected 3289 | 229 69 136 . . 209 . 61 20 881 541 1143 Remotely . | . . . . . . . . . . . . Salvage Created 5545 | . 83 263 . . 746 . . . 2343 390 1720 Parts 205 | . 11 11 . . 24 . . . 92 12 55 Haulers Intercepted 1 | . . . . . . . . . . . 1 Recyclers Shooed 6 | . . . . . . . . . 2 . 4 Parts Field Recycled . | . . . . . . . . . . . . Retrieved Matter . | . . . . . . . . . . . . Parts Self-Destructed . | . . . . . . . . . . . . Prevented . | . . . . . . . . . . . . Parts Restored . | . . . . . . . . . . . . Kills | -11 -10 -10 -10 -9 -8 -7 -7 -6 -6 -6 -5 ------- Run | Yrd Mat Min Exi Min Mat Fac DSF Fac Ext Cet Fac Combat Hostiles Destroyed 95 | . 6 7 . . 18 . . . 25 6 33 Guns 32 | . 6 7 . . 1 . . . 9 2 7 Cannons 48 | . . . . . 12 . . . 9 4 23 AOE 7 | . . . . . 2 . . . 3 . 2 Classes Destroyed 17 | . 1 3 . . 1 . . . 8 . 4 Worker 1 | . . . . . . . . . 1 . . Builder 5 | . . . . . . . . . 5 . . Tunneler 2 | . . . . . . . . . 2 . . Hauler 1 | . . . . . . . . . . . 1 Recycler 7 | . . 1 . . . . . . 4 . 2 Mechanic 1 | . . . . . . . . . . . 1 Operator 2 | . . . . . . . . . 2 . . Watcher 3 | . . . . . . . . . 1 2 . Swarmer 13 | . 6 3 . . 3 . . . . . 1 Saboteur 1 | . . . . . . . . . . . 1 Grunt 41 | . . 3 . . 9 . . . 14 . 15 Brawler 6 | . . . . . . . . . 1 . 5 Duelist 3 | . . . . . . . . . . . 3 Sentry 15 | . . . . . 6 . . . 8 . 1 Programmer 8 | . . . . . . . . . 1 . 7 Behemoth 1 | . . . . . . . . . 1 . . Cetus Guard 6 | . . . . . . . . . . 6 . Assembled 1 | . . 1 . . . . . . . . . Thug 1 | . . . . . . . . . 1 . . Savage 1 | . . . . . . . . . . 1 . Best Kill Streak 10 | . 6 3 . . 3 . . . 10 3 9 Combat Bots Only 9 | . 6 3 . . 3 . . . 9 2 9 Max Kills in Single Turn 3 | . 2 1 . . 2 . . . 3 1 2 Gunslinging . | . . . . . . . . . . . . Exploded 2 | . . . . . 2 . . . 2 . 1 Melee . | . . . . . . . . . . . . Uniques/NPCs Destroyed . | . . . . . . . . . . . . Combat | -11 -10 -10 -10 -9 -8 -7 -7 -6 -6 -6 -5 -------- Run | Yrd Mat Min Exi Min Mat Fac DSF Fac Ext Cet Fac Hostile Shots Fired 1152 | . 19 73 . . 90 . . . 491 99 380 Missed 365 | . 4 25 . . 26 . . . 196 34 80 Hits 787 | . 15 48 . . 64 . . . 295 65 300 Melee 23 | . . 4 . . . . . . . . 19 Projectile 764 | . 15 44 . . 64 . . . 295 65 281 Critical Strikes 28 | . . . . . 2 . . . 4 11 11 Damage Taken 14044 | . 110 689 . . 893 . . . 3813 1889 6650 Core 2041 | . 30 141 . . 96 . . . 604 169 1001 Absorbed by Shields 141 | . . . . . . . . . . . 141 Core Remaining (%) 64 | 100 . . . 31 82 . 100 . . 9 . Volleys Fired 349 | . 9 26 1 . 50 . 2 1 122 38 100 Largest 4 | . 2 2 2 . 2 . 1 1 2 2 4 Hottest 568 | . 112 131 131 . 120 . 120 120 165 105 568 Shots Fired 646 | . 18 52 2 . 56 . 2 1 201 75 239 Gun 304 | . 18 52 2 . 6 . . . 118 37 71 Cannon 320 | . . . . . 50 . 2 1 61 38 168 Launcher 22 | . . . . . . . . . 22 . . Special . | . . . . . . . . . . . . Kinetic 272 | . . . . . 12 . . . 75 65 120 Thermal 329 | . 18 52 2 . 44 . 2 1 104 10 96 Explosive . | . . . . . . . . . . . . Electromagnetic 45 | . . . . . . . . . 22 . 23 Robot Hit Streak 43 | . 3 6 . . 43 . . 1 16 10 11 Robot Miss Streak 8 | . 3 3 . . 6 . . . 4 5 8 Penetration Max 1 | . . . . . . . . . . 1 . Secondary Targets 5 | . 2 1 . . . . . . 1 1 . Max Gunslinging Chain 1 | . 1 1 . . . . . . 1 1 . Shots Hit Robots 469 | . 10 31 . . 53 . . 1 156 55 163 Core Hits 304 | . 6 13 . . 25 . . . 110 40 110 Critical Kills 1 | . . . . . . . . . 1 . . Critical Parts Destroyed 4 | . . . . . . . . . . 3 1 Critical Strikes 13 | . 1 2 . . . . . . 3 4 3 Burn 6 | . 1 2 . . . . . . 2 1 . Destroy 4 | . . . . . . . . . 1 3 . Blast 2 | . . . . . . . . . . . 2 Smash 1 | . . . . . . . . . . . 1 Melee Attacks 4 | . . . . . . . . . . . 4 Impact 4 | . . . . . . . . . . . 4 Slashing . | . . . . . . . . . . . . Piercing . | . . . . . . . . . . . . Sneak Attacks . | . . . . . . . . . . . . Combat Hostiles . | . . . . . . . . . . . . Follow-up Attacks . | . . . . . . . . . . . . Damage Inflicted 16417 | . 161 525 . . 1996 . 73 39 5629 1774 6220 Guns 5111 | . 161 525 . . 137 . . . 1928 781 1579 Cannons 8315 | . . . . . 1661 . 73 39 1767 993 3782 Explosions 2788 | . . . . . 198 . . . 1934 . 656 Melee 181 | . . . . . . . . . . . 181 Ramming 22 | . . . . . . . . . . . 22 Kinetic 6352 | . . . . . 260 . . . 1737 1586 2769 Thermal 7260 | . 161 525 . . 1736 . 73 39 1975 188 2563 Explosive 352 | . . . . . . . . . . . 352 Electromagnetic 2250 | . . . . . . . . . 1917 . 333 Impact 181 | . . . . . . . . . . . 181 Slashing . | . . . . . . . . . . . . Piercing . | . . . . . . . . . . . . Highest Corruption 29 | . . . . . . . . . 8 8 29 Average Corruption 7 | . . . . . . . . . 8 8 6 Corruption Purged . | . . . . . . . . . . . . Corruption Blocked . | . . . . . . . . . . . . Effects 100 | . . . . . . . . . 24 25 51 Message Errors 26 | . . . . . . . . . 5 5 16 Matter Fused 27 | . . . . . . . . . 6 8 13 Heat Flow Errors 10 | . . . . . . . . . 2 3 5 Energy Discharges 3 | . . . . . . . . . 1 . 2 Parts Rejected 1 | . . . . . . . . . . . 1 Data Loss (minor) 15 | . . . . . . . . . 6 3 6 Data Loss (major) 7 | . . . . . . . . . 1 3 3 Misfires 3 | . . . . . . . . . 1 2 . Misdirections 1 | . . . . . . . . . . . 1 Weapon Failures 7 | . . . . . . . . . 2 1 4 Overload Shots 6 | . . . . . . . . . . . 6 Overflow Damage 410 | . . . . . 29 . . . 51 5 325 Projectiles 247 | . . . . . 29 . . . . 5 213 Explosions 92 | . . . . . . . . . 51 . 41 Melee 71 | . . . . . . . . . . . 71 Knockbacks 92 | . . . . . 6 . . . 22 9 55 Impact 4 | . . . . . . . . . . . 4 Kinetic 75 | . . . . . 6 . . . 16 8 45 Secondary 13 | . . . . . . . . . 6 1 6 Self-Inflicted Damage 78 | . . . . . . . . . . . 78 Shots 2 | . . . . . . . . . . . 2 Rammed 3 | . . . . . . . . . . . 3 Targets Rammed 3 | . . . . . . . . . . . 3 Kicked . | . . . . . . . . . . . . Crushed . | . . . . . . . . . . . . Highest Temperature 923 | . 306 324 33 . 333 . 350 54 243 327 923 Average Temperature 146 | . 128 100 16 . 140 . 117 34 59 122 240 Received Heat Transfer 3653 | . . 157 . . 375 . . . 1305 81 1735 Effects 59 | . . 1 . . 3 . . . . 6 49 Shutdowns 16 | . . . . . . . . . . 1 15 Energy Bleed 7 | . . . . . 2 . . . . 2 3 Interference 13 | . . . . . 1 . . . . 3 9 Matter Decay 4 | . . 1 . . . . . . . . 3 Short Circuit 3 | . . . . . . . . . . . 3 Damage (minor) 4 | . . . . . . . . . . . 4 Damage (major) 10 | . . . . . . . . . . . 10 Damage (core) 2 | . . . . . . . . . . . 2 Siege Activations . | . . . . . . . . . . . . Martial Activations . | . . . . . . . . . . . . Shielding Activations . | . . . . . . . . . . . . Robots Disrupted 1 | . . . . . . . . . 1 . . Combat Hostiles 1 | . . . . . . . . . 1 . . Robots Corrupted 3 | . . . . . . . . . 2 . 1 Combat Hostiles 3 | . . . . . . . . . 2 . 1 Parts Fried 4 | . . . . . . . . . 4 . . Impact Corruptions 3 | . . . . . . . . . . . 3 Robots Melted 5 | . . . . . 3 . . . 2 . . Combat Hostiles 5 | . . . . . 3 . . . 2 . . Parts Melted 31 | . . . . . 18 . . . 11 . 2 Heat Transferred 12318 | . 481 1332 . . 3460 . 160 80 3864 407 2534 Parts Sabotaged . | . . . . . . . . . . . . Parts Stolen . | . . . . . . . . . . . . Parts Stripped . | . . . . . . . . . . . . Power Chain Reactions 6 | . . . . . . . . . 5 . 1 Alert | -11 -10 -10 -10 -9 -8 -7 -7 -6 -6 -6 -5 ------- Run | Yrd Mat Min Exi Min Mat Fac DSF Fac Ext Cet Fac Maximum Alert Level 3 | . . . . . 1 . . . 3 2 2 Low Security (%) 74 | 100 100 100 . 100 94 100 100 100 72 9 64 Level 1 17 | . . . . . 5 . . . 16 73 23 Level 2 6 | . . . . . . . . . 8 17 12 Level 3 . | . . . . . . . . . 2 . . Level 4 . | . . . . . . . . . . . . Level 5 . | . . . . . . . . . . . . High Security . | . . . . . . . . . . . . Max Security . | . . . . . . . . . . . . Sterilizations 1 | . . . . . . . 1 . . . . Peak Influence 761 | . 130 96 . . 226 97 29 14 761 447 533 Initial 423 | . . 34 . . . 97 29 14 . 423 96 Average 112 | . 56 27 . . 57 71 29 1 150 300 133 Influence Increases 3914 | . 140 238 . . 729 5 . 4 1464 232 1102 Destroy 0b10 Robot/C 2420 | . 120 160 . . 460 . . . 860 160 660 Destroy 0b10 Robot/NC 125 | . . 5 . . 5 . . . 85 10 20 Destroy Leader 380 | . 20 30 . . 122 . . . 126 . 82 Allied During Kill 394 | . . 28 . . 28 . . . 318 20 . Successful Hack 57 | . . . . . 11 5 . 4 20 8 9 Disable Machine 105 | . . . . . 45 . . . 15 . 45 Destroy Structure 178 | . . . . . 13 . . . 25 4 136 Lose Combat Pursuer 255 | . . 15 . . 45 . . . 15 30 150 Influence Decreases 3460 | . 50 280 48 . 515 177 13 33 707 816 821 Entered New Map 660 | . . 56 48 . . 117 13 15 . 334 77 Time Decay 1960 | . 50 204 . . 415 60 . 18 447 342 424 Lost Part 563 | . . 20 . . 40 . . . 103 80 320 Lost Ally 277 | . . . . . 60 . . . 157 60 . Squads Dispatched 23 | . 3 . . . 2 . . 1 5 . 12 Investigation 6 | . 1 . . . . . . . 4 . 1 Extermination 5 | . . . . . . . . 1 . . 4 Reinforcement 7 | . 2 . . . 2 . . . 1 . 2 Assault 2 | . . . . . . . . . . . 2 Garrison 3 | . . . . . . . . . . . 3 Intercept . | . . . . . . . . . . . . Searches Triggered . | . . . . . . . . . . . . Construction Impeded 2 | . . . . . 1 . . . 1 . . Haulers Reinforced 1 | . . . . . . . . . . . 1 Active Scanning Responses . | . . . . . . . . . . . . Cargo Convoy Interrupts 1 | . . . . . . . . . . . 1 Stealth | -11 -10 -10 -10 -9 -8 -7 -7 -6 -6 -6 -5 --------- Run | Yrd Mat Min Exi Min Mat Fac DSF Fac Ext Cet Fac Distress Signals 11 | . 1 1 . . 4 . . . 2 2 1 Communications Jammed . | . . . . . . . . . . . . Distress Signals . | . . . . . . . . . . . . Times Spotted 179 | . 10 16 . . 30 . 3 1 49 13 57 Peak Tracking Total 9 | . 8 6 . . 5 . 4 1 6 5 9 Tactical Retreats 15 | . . 2 . . 1 . . . 1 2 9 Traps | -11 -10 -10 -10 -9 -8 -7 -7 -6 -6 -6 -5 ------- Run | Yrd Mat Min Exi Min Mat Fac DSF Fac Ext Cet Fac Traps Triggered 10 | . 1 . . . 1 . 1 . 3 . 4 Indirectly . | . . . . . . . . . . . . Trap Hack Attempts . | . . . . . . . . . . . . Triggered . | . . . . . . . . . . . . Disarmed . | . . . . . . . . . . . . Reprogrammed . | . . . . . . . . . . . . Reused . | . . . . . . . . . . . . Traps Extracted . | . . . . . . . . . . . . Installed . | . . . . . . . . . . . . Triggered . | . . . . . . . . . . . . Machines | -11 -10 -10 -10 -9 -8 -7 -7 -6 -6 -6 -5 ---------- Run | Yrd Mat Min Exi Min Mat Fac DSF Fac Ext Cet Fac Machines Disabled 8 | . . . . . 3 . . . 2 . 3 Max in Single Turn 3 | . . . . . 3 . . . 1 . 2 Garrison Access 1 | . . . . . . . . . . . 1 Machines Repaired . | . . . . . . . . . . . . Machines Dismantled . | . . . . . . . . . . . . Machines Sabotaged . | . . . . . . . . . . . . Overloaded Fab Kills . | . . . . . . . . . . . . Hacking | -11 -10 -10 -10 -9 -8 -7 -7 -6 -6 -6 -5 --------- Run | Yrd Mat Min Exi Min Mat Fac DSF Fac Ext Cet Fac Machines Accessed 34 | . . . 5 . 7 1 . 1 10 3 7 Terminals 26 | . . . . . 7 1 . 1 10 3 4 Fabricators 2 | . . . . . . . . . . . 2 Repair Stations 1 | . . . . . . . . . . . 1 Recycling Units . | . . . . . . . . . . . . Scanalyzers . | . . . . . . . . . . . . Garrison Access . | . . . . . . . . . . . . Total Hacks 107 | . . . 50 . 13 2 . 2 22 3 15 Successful 69 | . . . 50 . 3 1 . 2 6 1 6 Failed 38 | . . . . . 10 1 . . 16 2 9 Catastrophic 19 | . . . . . 6 . . . 8 2 3 Database Lockouts . | . . . . . . . . . . . . Manual 16 | . . . 1 . 7 . . . 4 1 3 Terminals 54 | . . . . . 13 2 . 2 22 3 12 Fabricators 2 | . . . . . . . . . . . 2 Repair Stations 1 | . . . . . . . . . . . 1 Recycling Units . | . . . . . . . . . . . . Scanalyzers . | . . . . . . . . . . . . Garrison Access . | . . . . . . . . . . . . Terminal Hacks 68 | . . . 50 . 3 1 . 2 6 1 5 Record 55 | . . . 49 . . . . . 3 1 2 Robot Analysis 3 | . . . . . 1 . . . 1 . 1 Open Door 1 | . . . . . . . . . 1 . . Open DSF 1 | . . . . . . 1 . . . . . Branch Access Points 1 | . . . . . 1 . . . . . . Emergency Access Points 1 | . . . . . . . . 1 . . . Terminal Index 1 | . . . . . . . . . 1 . . Alert Level 2 | . . . . . . . . . . . 2 Locate Traps 2 | . . . . . 1 . . 1 . . . Proto ID Catalog 1 | . . . 1 . . . . . . . . Fabricator Hacks 1 | . . . . . . . . . . . 1 Network Status 1 | . . . . . . . . . . . 1 Repair Station Hacks . | . . . . . . . . . . . . Recycling Unit Hacks . | . . . . . . . . . . . . Scanalyzer . | . . . . . . . . . . . . Garrison Access Hacks . | . . . . . . . . . . . . Unauthorized Hacks . | . . . . . . . . . . . . Terminals . | . . . . . . . . . . . . Fabricators . | . . . . . . . . . . . . Repair Stations . | . . . . . . . . . . . . Recycling Units . | . . . . . . . . . . . . Scanalyzers . | . . . . . . . . . . . . Garrison Access . | . . . . . . . . . . . . Data Cores Recovered 2 | . . . . . . . . . 2 . . Used 1 | . . . . . . . . . 1 . . Hacking Detections 27 | . . . . . 7 1 . 1 10 2 6 Full Trace Events 4 | . . . . . . . . . 3 . 1 Feedback Events . | . . . . . . . . . . . . Feedback Blocked . | . . . . . . . . . . . . Robot Schematics Acquired . | . . . . . . . . . . . . Robots Built . | . . . . . . . . . . . . Authchips . | . . . . . . . . . . . . Time . | . . . . . . . . . . . . Total Robot Build Rating . | . . . . . . . . . . . . Part Schematics Acquired . | . . . . . . . . . . . . Parts Built . | . . . . . . . . . . . . Authchips . | . . . . . . . . . . . . Time . | . . . . . . . . . . . . Total Part Build Rating . | . . . . . . . . . . . . Part Studies Acquired . | . . . . . . . . . . . . Parts Repaired . | . . . . . . . . . . . . Time . | . . . . . . . . . . . . Parts Recycled . | . . . . . . . . . . . . Recycled Matter . | . . . . . . . . . . . . Retrieved Matter . | . . . . . . . . . . . . Retrieved Components . | . . . . . . . . . . . . Parts Scanalyzed . | . . . . . . . . . . . . Part Schematics Acquired . | . . . . . . . . . . . . Parts Damaged . | . . . . . . . . . . . . Bothacking | -11 -10 -10 -10 -9 -8 -7 -7 -6 -6 -6 -5 ------------ Run | Yrd Mat Min Exi Min Mat Fac DSF Fac Ext Cet Fac Used RIF Installer . | . . . . . . . . . . . . Robots Hacked . | . . . . . . . . . . . . Non-combat . | . . . . . . . . . . . . Combat . | . . . . . . . . . . . . Robot Hacks Applied . | . . . . . . . . . . . . Relay Couplers Released . | . . . . . . . . . . . . Fabnet Peak Effective % . | . . . . . . . . . . . . Robots Rewired 14 | . . . . . . . . . 14 . . Allies Hacked . | . . . . . . . . . . . . Hacks Repelled . | . . . . . . . . . . . . Allies | -11 -10 -10 -10 -9 -8 -7 -7 -6 -6 -6 -5 -------- Run | Yrd Mat Min Exi Min Mat Fac DSF Fac Ext Cet Fac Total Allies 20 | . . 4 . . . . . . 16 . . Largest Group 9 | . . 4 3 3 3 . . . 9 5 . Highest-Rated Group 275 | . . 71 40 40 40 . . . 275 122 . Highest-Rated Ally 39 | . . 31 16 16 16 . . . 39 31 . Initial Warlord ECA Mod 9 | . . . . . . . . 9 9 9 8 Total Orders . | . . . . . . . . . . . . Ally Attacks 300 | . . 31 . . 42 . . . 196 31 . Total Damage 4597 | . . 286 . . 441 . . . 3206 664 . Kills 39 | . . 8 . . 6 . . . 22 3 . Allies Corrupted . | . . . . . . . . . . . . Allies Melted . | . . . . . . . . . . . . Intel | -11 -10 -10 -10 -9 -8 -7 -7 -6 -6 -6 -5 ------- Run | Yrd Mat Min Exi Min Mat Fac DSF Fac Ext Cet Fac Active Infowar (turns) 3212 | . . . . . . . . . 688 571 1953 Optics 3212 | . . . . . . . . . 688 571 1953 Robot Analysis Total 3 | . . . . . 1 . . . 1 . 1 Derelict Logs Recovered 2 | . . 1 . 1 . . . . . . . Drone Launches . | . . . . . . . . . . . . Drone Recoveries . | . . . . . . . . . . . . Exploration | -11 -10 -10 -10 -9 -8 -7 -7 -6 -6 -6 -5 ------------- Run | Yrd Mat Min Exi Min Mat Fac DSF Fac Ext Cet Fac Turns Passed 9056 | 49 171 761 778 182 1733 121 182 345 1567 771 2396 Spaces Moved 4972 | 39 112 574 735 155 741 57 102 205 698 461 1093 Core 6 | 4 . . . . . . . . 1 . 1 Treads . | . . . . . . . . . . . . Legs . | . . . . . . . . . . . . Wheels 4966 | 35 112 574 735 155 741 57 102 205 697 461 1092 Hover . | . . . . . . . . . . . . Flight . | . . . . . . . . . . . . Fastest Speed 50 | 50 90 105 105 105 168 160 160 160 50 100 130 Average Speed 131 | 94 102 105 105 105 173 160 160 160 124 131 137 Slowest Speed 900 | 100 105 120 105 105 205 160 160 160 160 145 900 Overloaded Moves . | . . . . . . . . . . . . Propulsion Burnouts . | . . . . . . . . . . . . Robots Hopped . | . . . . . . . . . . . . Potential Cave-ins . | . . . . . . . . . . . . Cave-ins Triggered 1 | . . . . . . . . . . . 1 Exploration Rate (%) 49 | 3 31 82 93 26 68 2 93 7 79 78 30 Regions Visited 11 Branch Regions 5 Pre-discovered Areas 2 | . . . 1 1 . . . . . . . Known Exits Taken 2 | . . . . . 1 1 . . . . . Unknown Exits Taken 8 | 1 1 1 1 1 . . . 1 1 1 . Scrap Searched 1 | . . 1 . . . . . . . . . Spaces Dug 5 | . . . . . . . . . . . 5 Terrain Destroyed 100 | . . . . . 15 . . . 9 4 72 Melee . | . . . . . . . . . . . . Projectile 56 | . . . . . 1 . . . 5 4 46 AOE 44 | . . . . . 14 . . . 4 . 26 Terrain Rammed . | . . . . . . . . . . . . Walls Destroyed . | . . . . . . . . . . . . Machines Disabled . | . . . . . . . . . . . . Actions | -11 -10 -10 -10 -9 -8 -7 -7 -6 -6 -6 -5 --------- Run | Yrd Mat Min Exi Min Mat Fac DSF Fac Ext Cet Fac Total 6876 | 50 150 677 739 173 1136 88 122 221 1188 549 1783 Wait 1034 | . 8 53 1 18 282 28 . 13 125 17 489 Move 4961 | 38 111 573 734 154 740 56 101 204 697 460 1093 Hop . | . . . . . . . . . . . . Pick Up 164 | 7 11 12 2 . 37 . 11 1 33 12 38 Fast Attach . | . . . . . . . . . . . . Attach 87 | 5 2 2 . . 13 2 . 2 25 9 27 Detach 5 | . . . . . . 1 . . 3 . 1 Swap 52 | . 5 6 . 1 5 . 1 . 12 9 13 Drop 55 | . 4 5 1 . 9 1 7 . 9 4 15 Fire 349 | . 9 26 1 . 50 . 2 1 122 38 100 Melee 4 | . . . . . . . . . . . 4 Ram 3 | . . . . . . . . . . . 3 Kick . | . . . . . . . . . . . . Crush . | . . . . . . . . . . . . Escape Stasis 16 | . . . . . . . . . 16 . . Rewire 146 | . . . . . . . . . 146 . . Trap . | . . . . . . . . . . . . Miscellaneous . | . . . . . . . . . . . . Route ------- -11/Scrapyard -10/Materials -10/Mines (discovered 3 exits: [*Mat x2] / *Exi) -10/Exiles (discovered 2 exits: [*Min x2]) -9/Mines -8/Materials (discovered 2 exits: *Fac x2) -7/Factory -7/DSF -6/Factory -6/Extension (discovered 2 exits: *Fac / *Cet) -6/Cetus (discovered 3 exits: *Fac x2 / [*Arc]) -5/Factory History --------- Turn | Location | Event 22 | -11/Scrapyard | Discovered new exit (range 15) 50 | -11/Scrapyard | Entered Materials 203 | -10/Materials | Discovered new exit (range 15) 221 | -10/Materials | Entered Mines 224 | -10/Mines | Received a Mining Laser from a helpful Derelict 275 | -10/Mines | Assembled infested the area 310 | -10/Mines | Core integrity fell below 50% 318 | -10/Mines | Build established: Mutant 350 | -10/Mines | Discovered new exit (range 9) 456 | -10/Mines | Learned 2 Materials zone layouts 483 | -10/Mines | Discovered new exit (range 10) 492 | -10/Mines | Assisted by bots powering up and referring to "LRC-V3" 689 | -10/Mines | A weapon hastily lodged in a ceiling crevice suddenly fell to the ground 800 | -10/Mines | Deemed a non-threat by the Exiles lab entrance 800 | -10/Mines | Discovered new exit (range 5) 982 | -10/Mines | Entered Exiles 982 | -10/Exiles | Accompanied by 3 allies 1000 | -10/Exiles | Discovered new exit (range 15) 1031 | -10/Exiles | Met 8R-AWN 1050 | -10/Exiles | Met EX-HEX 1096 | -10/Exiles | Met EX-DEC 1117 | -10/Exiles | Visited The Gauntlet 1266 | -10/Exiles | Met EX-BIN 1346 | -10/Exiles | Learned location of Zion (-6) 1390 | -10/Exiles | Discovered new exit (range 10) 1537 | -10/Exiles | Aligned with FarCom system 1538 | -10/Exiles | Given EX-Vault access code 1562 | -10/Exiles | Opened EX-Vault 1569 | -10/Exiles | Found Gui. Plasma Cannon 1592 | -10/Exiles | Warned to stay clear of 0b10 Research branches 1760 | -10/Exiles | Left Exiles lab with Gui. Plasma Cannon 1760 | -10/Exiles | Entered Mines 1760 | -9/Mines | Accompanied by 3 allies 1768 | -9/Mines | Met a Derelict bent on vengeance 1801 | -9/Mines | Learned Materials emergency access door positions 1822 | -9/Mines | Learned location of Storage (-7) 1936 | -9/Mines | Discovered new exit (range 6) 1942 | -9/Mines | Entered Materials 1942 | -8/Materials | Accompanied by 3 allies 1942 | -8/Materials | Evolved 4 slots: Power x1, Propulsion x1, Utility x2 1943 | -8/Materials | Identified exit to Factory 2241 | -8/Materials | Build established: Hauler-Mutant 2407 | -8/Materials | Lost 3 allies 3650 | -8/Materials | Discovered exit to Factory (range 16) 3675 | -8/Materials | Entered Factory 3675 | -7/Factory | Evolved 2 slots: Propulsion x1, Utility x1 3796 | -7/Factory | Identified exit to DSF 3796 | -7/Factory | Entered DSF 3796 | -7/DSF | Encountered a pitched battle between 0b10 and Warlord forces 3807 | -7/DSF | Spotted Executioner 3838 | -7/DSF | Found Prototype Device 3847 | -7/DSF | Found Prototype Processor 3866 | -7/DSF | Sterilization system engaged 3873 | -7/DSF | Discovered new exit (range 16) 3886 | -7/DSF | Ambient heat levels rising (+10) 3901 | -7/DSF | Ambient heat levels rising (+10) 3915 | -7/DSF | Lost 13 allies 3916 | -7/DSF | Ambient heat levels rising (+10) 3931 | -7/DSF | Ambient heat levels rising (+10) 3946 | -7/DSF | Ambient heat levels rising (+10) 3961 | -7/DSF | Ambient heat levels rising (+10) 3976 | -7/DSF | Ambient heat levels rising (+10) 3978 | -7/DSF | Entered Factory 3978 | -6/Factory | Evolved 2 slots: Utility x2 4299 | -6/Factory | Discovered new exit (range 15) 4323 | -6/Factory | Entered Extension 4717 | -6/Extension | Gui. Plasma Cannon suddenly broke down 5077 | -6/Extension | Core integrity fell below 50% 5089 | -6/Extension | Lost 16 parts (2p3n9u2w) 5114 | -6/Extension | Destroyed 9 combat bots 5119 | -6/Extension | Identified Adv. Kinecellerator 5148 | -6/Extension | Disrupted transfer network 5245 | -6/Extension | Spotted B-75 Beast 5283 | -6/Extension | Spotted B-75 Beast 5286 | -6/Extension | Destroyed B-75 Beast 5307 | -6/Extension | Allies destroyed B-75 Beast 5326 | -6/Extension | Lost 4 parts (1p2u1w) 5404 | -6/Extension | Build established: Scavenger-Mutant 5571 | -6/Extension | Rescued a captive Derelict 5571 | -6/Extension | Rescued a captive Derelict 5767 | -6/Extension | Lost 3 allies 5822 | -6/Extension | Discovered new exit (range 10) 5823 | -6/Extension | Discovered new exit (range 6) 5828 | -6/Extension | Lost 3 allies 5890 | -6/Extension | Entered Cetus 5890 | -6/Cetus | Accompanied by 5 allies 5901 | -6/Cetus | Spotted Cetus Guard 5905 | -6/Cetus | Spotted Cetus Guard 5905 | -6/Cetus | Spotted Cetus Guard 5908 | -6/Cetus | Spotted Cetus Guard 5919 | -6/Cetus | Allies destroyed Cetus Guard 5928 | -6/Cetus | Destroyed Cetus Guard 5931 | -6/Cetus | Destroyed Cetus Guard 5941 | -6/Cetus | Allies destroyed Cetus Guard 5958 | -6/Cetus | Lost 3 allies 6006 | -6/Cetus | Discovered new exit (range 19) 6122 | -6/Cetus | Discovered new exit (range 19) 6153 | -6/Cetus | Spotted Cetus Guard 6153 | -6/Cetus | Spotted Cetus Guard 6156 | -6/Cetus | Spotted Cetus Guard 6156 | -6/Cetus | Spotted Cetus Guard 6165 | -6/Cetus | Destroyed Cetus Guard 6181 | -6/Cetus | Core integrity fell below 20% 6186 | -6/Cetus | Destroyed Cetus Guard 6245 | -6/Cetus | Lost 5 parts (1n2u2w) 6426 | -6/Cetus | Discovered new exit (range 20) 6454 | -6/Cetus | Destroyed Cetus Guard 6485 | -6/Cetus | Destroyed Cetus Guard 6488 | -6/Cetus | Met Revision 17 6640 | -6/Cetus | Security sweep announced 6661 | -6/Cetus | Entered Factory 6661 | -5/Factory | Evolved 2 slots: Weapon x2 6960 | -5/Factory | Lost 4 parts (1p1n1u1w) 7210 | -5/Factory | Found Prototype Launcher 7220 | -5/Factory | Found Prototype Launcher 7223 | -5/Factory | Identified Tesla Bomb Launcher (x2) 7256 | -5/Factory | Build established: Scavenger-Tank 7910 | -5/Factory | Cargo convoy interrupted 8212 | -5/Factory | Lost 4 parts (1p2u1w) 8226 | -5/Factory | Destroyed 9 combat bots 8254 | -5/Factory | System corruption reached 10% 8635 | -5/Factory | Garrison activated, responded to threat 9030 | -5/Factory | Core integrity fell below 50% 9044 | -5/Factory | Crushed by falling debris 9044 | -5/Factory | Core integrity fell below 20% 9057 | -5/Factory | Destroyed by G-67 Veteran with Field Laser Last Messages --------------- (-10). 09047_ Acquired 64 matter. 09048_ The unstable cave ceiling collapses. 09048_ Critical hit (Burn: +37). 09049_ Power failure, Rnf. Fission Core shutdown. 09049_ Overheating: Neutron Cannon damaged (-40). 09049_ Overheating: Imp. Weapon Cycler damaged (-6). 09052_ Overheating: Rnf. Fission Core damaged (-11). 09052_ Overheating: Neutron Cannon damaged (-8). 09052_ Arm. Medium Treads destroyed. 09053_ VB2G 09054_ Neutron Cannon destroyed. 09055_ Lrg. Storage Unit destroyed. 09057_ Mic. Fission Core broken. 09057_ Overheating: Short circuit. 09057_ Rnf. Fission Core destroyed. Map ----- +----------------------------------------------------+ | ???????????????????????????????????????????????? | | ??????????????????????????????????????????????# | | ??????????????????????????????????????????????# | | ??????????????????????????????????????????????# | | ??????????????????????????????????????????????# | | ????????????????????????????? ????????????????# | | ????????????????????????????#/????????????????# | | ????????????????????????????#"################# | | ????????????????????????????#%" | | ????????????????????????????#gg | | ????????????????????????????# """" """" """" | | ????????????????????????????+ """" """" """" | | ????????????????????????????# """" """" """" | | ????????????????????????????# | | ??????????????????????????### """" "" "" | | ??????????????????????????# """" "F "" | | ???????????????????????##?# % """" """"" | | ???????????????????????# ## | | ???????????????????????# # | | ???????????????????????# # ;;############### | | ??????????????????????## # # ####????????????? | | ?????????????????????## % #????????????? | | ?????????????????????# ""#????????????? | | ?????????????????????# *g%p T"#????????????? | | ??????????????????????# %% g ""#????????????? | | ??????????????????????#=]@|g #????????????? | | ??????????????????????### ####????????????? | | | | | | | | | | | | | | | | | | | | | | | | | | | | | | | | | | | | | | | | | | | | | | | +----------------------------------------------------+ Best States ------------- Heat Dissipation 130 Energy Generation 45 Energy Capacity 600 Matter Stores 300 Matter Capacity 300 Sight Range 20 Terrain Scan Density 10 Power Amplification 20 Additional Mass Support 6 Base Temperature (-) 150 Armor Coverage 825 Resistance: EX 25 Weapon Cycling 20 Evasion (%) 40 Launcher Accuracy 20 Kinecelleration 50 Trap Extractor Capacity 6 Item Schematics ----------------- None Robot Schematics ------------------ None Fabricated ------------ Nothing Repaired ---------- Nothing Studied --------- None Alien Tech Used ----------------- None Achievements -------------- DIY Cooler Jackpot More Dakka Please Packrat Sixth Sense Tank Thread The Needle Around The Corner Challenges ------------ None Game ------ Seed AnalysisGravitonFilter Manual? 0 Play Time 03:18:41 Cumulative 26.1 hours Start 2025.11.23 @ 23:40:56 End 2025.11.24 @ 15:18:11 Sessions 3 Manual Loads 0 Difficulty Rogue Special Mode None Game No. 10 Rogue 10 Adventurer 0 Explorer 0 Win Type - Total 1 Types 1/0/0/0/0/0/0/0/0/0 Lore% 11 Gallery% 23 Achievement% 23 Wizard Run 0 Options --------- Layout 1 ASCII 0 Keyboard 0 Movement Numpad Keybinds 0 Fullscreen 1 Font 24/Smallcaps Map View 50x35 Zoom Use 0% Tactical HUD 1 Map Filters NONE Filters NONE Steam 1 RUN: 6553ca4e-09fe-409d-9d25-d5eb99091e26